[Event "Titled Tuesday Blitz April 18 Early 2023"]
[White "Zakhartsov, Vladimir"]
[Black "wqws"]
[WhiteFideId "4145097"]
[WhiteElo "2497"]
[BlackElo "2570"]
[Result "0-1"]
[Round "02"]
[TimeControl "180+2"]
[Date "2023.04.18"]
[WhiteClock "0:00:31"]
[BlackClock "0:00:47"]

1. e4 {[%clk 0:03:00]}  c5 {[%clk 0:02:57]} 2. Nf3 {[%clk 0:03:00]}  d6 {[%clk 0:02:57]} 3. d4 {[%clk 0:03:00]}  cxd4 {[%clk 0:02:58]} 4. Nxd4 {[%clk 0:03:01]}  Nf6 {[%clk 0:02:58]} 5. f3 {[%clk 0:03:01]}  e5 {[%clk 0:02:58]} 6. Nb3 {[%clk 0:03:01]}  d5 {[%clk 0:02:49]} 7. Bg5 {[%clk 0:03:00]}  Be6 {[%clk 0:02:45]} 8. Bxf6 {[%clk 0:02:58]}  gxf6 {[%clk 0:02:44]} 9. exd5 {[%clk 0:02:58]}  Qxd5 {[%clk 0:02:40]} 10. Nc3 {[%clk 0:02:58]}  Bb4 {[%clk 0:02:31]} 11. Qxd5 {[%clk 0:02:55]}  Bxc3+ {[%clk 0:02:30]} 12. Qd2 {[%clk 0:02:54]}  Bxd2+ {[%clk 0:02:30]} 13. Nxd2 {[%clk 0:02:55]}  Nc6 {[%clk 0:02:29]} 14. Ne4 {[%clk 0:02:54]}  Ke7 {[%clk 0:02:26]} 15. c3 {[%clk 0:02:53]}  b6 {[%clk 0:02:23]} 16. Bb5 {[%clk 0:02:51]}  Rac8 {[%clk 0:02:23]} 17. Rd1 {[%clk 0:02:46]}  Rhd8 {[%clk 0:02:13]} 18. Rxd8 {[%clk 0:02:36]}  Nxd8 {[%clk 0:02:14]} 19. Ke2 {[%clk 0:02:35]}  f5 {[%clk 0:02:09]} 20. Nf2 {[%clk 0:02:30]}  Rc7 {[%clk 0:02:03]} 21. a4 {[%clk 0:02:24]}  Nb7 {[%clk 0:02:03]} 22. Nd3 {[%clk 0:02:23]}  f6 {[%clk 0:02:02]} 23. Nb4 {[%clk 0:02:22]}  Nd6 {[%clk 0:01:59]} 24. Rd1 {[%clk 0:02:08]}  Nxb5 {[%clk 0:01:41]} 25. axb5 {[%clk 0:02:08]}  Bc4+ {[%clk 0:01:38]} 26. Ke3 {[%clk 0:02:08]}  Ke6 {[%clk 0:01:35]} 27. f4 {[%clk 0:02:00]}  Bxb5 {[%clk 0:01:33]} 28. Rd8 {[%clk 0:01:59]}  Rd7 {[%clk 0:01:27]} 29. Rh8 {[%clk 0:01:53]}  a5 {[%clk 0:01:25]} 30. Na2 {[%clk 0:01:40]}  Rd3+ {[%clk 0:01:25]} 31. Kf2 {[%clk 0:01:40]}  Rd2+ {[%clk 0:01:25]} 32. Ke3 {[%clk 0:01:39]}  Re2+ {[%clk 0:01:20]} 33. Kf3 {[%clk 0:01:39]}  Rxb2 {[%clk 0:01:20]} 34. Nc1 {[%clk 0:01:40]}  Bc6+ {[%clk 0:01:20]} 35. Ke3 {[%clk 0:01:38]}  Rxg2 {[%clk 0:01:05]} 36. Rxh7 {[%clk 0:01:31]}  Rc2 {[%clk 0:01:05]} 37. Nd3 {[%clk 0:01:15]}  Rxc3 {[%clk 0:01:05]} 38. Kd2 {[%clk 0:01:13]}  Rc4 {[%clk 0:01:04]} 39. Rh6 {[%clk 0:00:57]}  exf4 {[%clk 0:01:02]} 40. Rh4 {[%clk 0:00:57]}  a4 {[%clk 0:00:53]} 41. Nxf4+ {[%clk 0:00:45]}  Kd6 {[%clk 0:00:53]} 42. Ng6 {[%clk 0:00:42]}  Rxh4 {[%clk 0:00:50]} 43. Nxh4 {[%clk 0:00:43]}  f4 {[%clk 0:00:49]} 44. Ng6 {[%clk 0:00:34]}  f3 {[%clk 0:00:49]} 45. Nf4 {[%clk 0:00:31]}  a3 {[%clk 0:00:47]} 0-1


[Site "https://www.chess.com"]

[Event "Titled Tuesday Blitz April 18 Early 2023"]
[White "Rustemov, Alexander"]
[Black "Munoz, Francisco Javier"]
[WhiteFideId "4119002"]
[BlackFideId "128368"]
[WhiteElo "2867"]
[BlackElo "2383"]
[Result "0-1"]
[Round "02"]
[TimeControl "180+2"]
[Date "2023.04.18"]
[WhiteClock "0:00:18"]
[BlackClock "0:00:21"]

1. d4 {[%clk 0:03:00]}  d5 {[%clk 0:02:59]} 2. c4 {[%clk 0:03:01]}  e6 {[%clk 0:03:00]} 3. Nc3 {[%clk 0:03:01]}  Nf6 {[%clk 0:03:01]} 4. cxd5 {[%clk 0:03:02]}  exd5 {[%clk 0:03:01]} 5. Bg5 {[%clk 0:03:02]}  c6 {[%clk 0:03:01]} 6. e3 {[%clk 0:03:03]}  h6 {[%clk 0:03:02]} 7. Bh4 {[%clk 0:03:02]}  Nbd7 {[%clk 0:03:02]} 8. Qc2 {[%clk 0:03:00]}  Be7 {[%clk 0:03:02]} 9. Bd3 {[%clk 0:03:00]}  Nh5 {[%clk 0:03:01]} 10. Bxe7 {[%clk 0:02:58]}  Qxe7 {[%clk 0:03:02]} 11. Nge2 {[%clk 0:02:58]}  Nb6 {[%clk 0:03:02]} 12. O-O-O {[%clk 0:02:58]}  Bd7 {[%clk 0:03:02]} 13. Kb1 {[%clk 0:02:57]}  O-O-O {[%clk 0:03:02]} 14. Rc1 {[%clk 0:02:52]}  Kb8 {[%clk 0:03:03]} 15. Na4 {[%clk 0:02:50]}  Nxa4 {[%clk 0:03:03]} 16. Qxa4 {[%clk 0:02:51]}  Rhe8 {[%clk 0:03:01]} 17. Rc3 {[%clk 0:02:45]}  c5 {[%clk 0:02:52]} 18. Bb5 {[%clk 0:02:40]}  Bxb5 {[%clk 0:02:51]} 19. Qxb5 {[%clk 0:02:40]}  c4 {[%clk 0:02:51]} 20. b3 {[%clk 0:02:37]}  a6 {[%clk 0:02:30]} 21. Qb6 {[%clk 0:02:36]}  Rd6 {[%clk 0:02:23]} 22. Qb4 {[%clk 0:02:35]}  Qc7 {[%clk 0:02:15]} 23. Ng3 {[%clk 0:02:17]}  Nxg3 {[%clk 0:02:13]} 24. hxg3 {[%clk 0:02:17]}  Rc8 {[%clk 0:02:12]} 25. Rhc1 {[%clk 0:02:16]}  Rc6 {[%clk 0:02:11]} 26. a4 {[%clk 0:02:10]}  Qb6 {[%clk 0:02:00]} 27. Qxb6 {[%clk 0:01:51]}  Rxb6 {[%clk 0:02:01]} 28. Kb2 {[%clk 0:01:50]}  Rxb3+ {[%clk 0:01:46]} 29. Rxb3 {[%clk 0:01:48]}  cxb3 {[%clk 0:01:47]} 30. Rxc8+ {[%clk 0:01:47]}  Kxc8 {[%clk 0:01:47]} 31. Kxb3 {[%clk 0:01:46]}  Kc7 {[%clk 0:01:19]} 32. g4 {[%clk 0:01:30]}  g6 {[%clk 0:01:18]} 33. Kb4 {[%clk 0:01:25]}  Kc6 {[%clk 0:01:03]} 34. Ka5 {[%clk 0:01:21]}  Kc7 {[%clk 0:01:03]} 35. f3 {[%clk 0:01:15]}  f5 {[%clk 0:01:03]} 36. gxf5 {[%clk 0:01:09]}  gxf5 {[%clk 0:01:04]} 37. Kb4 {[%clk 0:01:07]}  b6 {[%clk 0:01:02]} 38. Kc3 {[%clk 0:01:00]}  Kc6 {[%clk 0:01:00]} 39. Kd3 {[%clk 0:00:50]}  b5 {[%clk 0:01:00]} 40. a5 {[%clk 0:00:47]}  b4 {[%clk 0:00:55]} 41. e4 {[%clk 0:00:47]}  fxe4+ {[%clk 0:00:53]} 42. fxe4 {[%clk 0:00:48]}  dxe4+ {[%clk 0:00:53]} 43. Kxe4 {[%clk 0:00:47]}  h5 {[%clk 0:00:27]} 44. g3 {[%clk 0:00:41]}  b3 {[%clk 0:00:26]} 45. Kd3 {[%clk 0:00:38]}  Kd5 {[%clk 0:00:26]} 46. Kc3 {[%clk 0:00:34]}  b2 {[%clk 0:00:25]} 47. Kxb2 {[%clk 0:00:34]}  Kxd4 {[%clk 0:00:26]} 48. Kb3 {[%clk 0:00:33]}  Kc5 {[%clk 0:00:25]} 49. Kc3 {[%clk 0:00:27]}  Kb5 {[%clk 0:00:25]} 50. Kd4 {[%clk 0:00:27]}  Kxa5 {[%clk 0:00:25]} 51. Kc5 {[%clk 0:00:28]}  Ka4 {[%clk 0:00:23]} 52. Kc4 {[%clk 0:00:23]}  a5 {[%clk 0:00:23]} 53. Kc3 {[%clk 0:00:19]}  Kb5 {[%clk 0:00:23]} 54. Kb3 {[%clk 0:00:18]}  a4+ {[%clk 0:00:18]} 55. Ka3 {[%clk 0:00:18]}  Ka5 {[%clk 0:00:18]} 56. Kb2 {[%clk 0:00:18]}  Kb4 {[%clk 0:00:19]} 57. Ka2 {[%clk 0:00:19]}  a3 {[%clk 0:00:19]} 58. Kb1 {[%clk 0:00:19]}  Kb3 {[%clk 0:00:19]} 59. Ka1 {[%clk 0:00:18]}  a2 {[%clk 0:00:19]} 60. g4 {[%clk 0:00:17]}  h4 {[%clk 0:00:20]} 61. g5 {[%clk 0:00:18]}  h3 {[%clk 0:00:20]} 62. g6 {[%clk 0:00:18]}  h2 {[%clk 0:00:21]} 63. g7 {[%clk 0:00:18]}  h1=Q# {[%clk 0:00:21]} 0-1


[Site "https://www.chess.com"]

[Event "Titled Tuesday Blitz April 18 Early 2023"]
[White "Drygalov, Andrey"]
[Black "Janaszak, Dawid"]
[WhiteFideId "24171735"]
[BlackFideId "1119206"]
[WhiteElo "2466"]
[BlackElo "2220"]
[Result "1/2-1/2"]
[Round "02"]
[TimeControl "180+2"]
[Date "2023.04.18"]
[WhiteClock "0:00:04"]
[BlackClock "0:00:17"]

1. e4 {[%clk 0:03:00]}  c5 {[%clk 0:02:59]} 2. Nf3 {[%clk 0:03:00]}  Nc6 {[%clk 0:03:00]} 3. Bb5 {[%clk 0:02:59]}  e5 {[%clk 0:03:00]} 4. O-O {[%clk 0:02:58]}  Nge7 {[%clk 0:03:00]} 5. c3 {[%clk 0:02:58]}  g6 {[%clk 0:03:00]} 6. d4 {[%clk 0:02:57]}  cxd4 {[%clk 0:03:01]} 7. cxd4 {[%clk 0:02:56]}  exd4 {[%clk 0:03:02]} 8. Nxd4 {[%clk 0:02:44]}  Bg7 {[%clk 0:03:02]} 9. Be3 {[%clk 0:02:42]}  O-O {[%clk 0:03:02]} 10. Nc3 {[%clk 0:02:42]}  d5 {[%clk 0:03:03]} 11. exd5 {[%clk 0:02:34]}  Nxd5 {[%clk 0:03:04]} 12. Nxc6 {[%clk 0:02:33]}  bxc6 {[%clk 0:03:01]} 13. Bxc6 {[%clk 0:02:34]}  Nxe3 {[%clk 0:03:01]} 14. Qxd8 {[%clk 0:02:12]}  Rxd8 {[%clk 0:03:02]} 15. Rfe1 {[%clk 0:02:01]}  Rb8 {[%clk 0:02:43]} 16. Rxe3 {[%clk 0:01:54]}  Rxb2 {[%clk 0:02:43]} 17. Nd5 {[%clk 0:01:08]}  Be6 {[%clk 0:02:26]} 18. Nf4 {[%clk 0:00:37]}  Rc2 {[%clk 0:02:18]} 19. Be4 {[%clk 0:00:33]}  Rxa2 {[%clk 0:01:25]} 20. Rae1 {[%clk 0:00:26]}  Rdd2 {[%clk 0:01:18]} 21. Nxe6 {[%clk 0:00:22]}  fxe6 {[%clk 0:01:18]} 22. Kh1 {[%clk 0:00:15]}  Rxf2 {[%clk 0:01:14]} 23. Bf3 {[%clk 0:00:15]}  Ra1 {[%clk 0:00:58]} 24. Rxa1 {[%clk 0:00:10]}  Bxa1 {[%clk 0:00:59]} 25. h3 {[%clk 0:00:08]}  Bd4 {[%clk 0:00:57]} 26. Rxe6 {[%clk 0:00:05]}  Kg7 {[%clk 0:00:54]} 27. Kh2 {[%clk 0:00:05]}  Bb6 {[%clk 0:00:43]} 28. h4 {[%clk 0:00:05]}  Rd2 {[%clk 0:00:40]} 29. Re7+ {[%clk 0:00:04]}  Kh6 {[%clk 0:00:39]} 30. Kh3 {[%clk 0:00:05]}  Rd3 {[%clk 0:00:30]} 31. h5 {[%clk 0:00:05]}  gxh5 {[%clk 0:00:27]} 32. Re6+ {[%clk 0:00:05]}  Kg7 {[%clk 0:00:27]} 33. Re5 {[%clk 0:00:06]}  h4 {[%clk 0:00:25]} 34. Kxh4 {[%clk 0:00:05]}  Rd4+ {[%clk 0:00:23]} 35. Kh3 {[%clk 0:00:05]}  h6 {[%clk 0:00:21]} 36. Re7+ {[%clk 0:00:05]}  Kf6 {[%clk 0:00:21]} 37. Rh7 {[%clk 0:00:05]}  Kg6 {[%clk 0:00:20]} 38. Re7 {[%clk 0:00:06]}  h5 {[%clk 0:00:16]} 39. Re6+ {[%clk 0:00:06]}  Kf7 {[%clk 0:00:15]} 40. Re5 {[%clk 0:00:06]}  h4 {[%clk 0:00:15]} 41. Bg4 {[%clk 0:00:06]}  Bd8 {[%clk 0:00:14]} 42. Rf5+ {[%clk 0:00:06]}  Kg7 {[%clk 0:00:14]} 43. Rf3 {[%clk 0:00:06]}  Bf6 {[%clk 0:00:14]} 44. Ra3 {[%clk 0:00:05]}  Rc4 {[%clk 0:00:12]} 45. Rxa7+ {[%clk 0:00:05]}  Kh6 {[%clk 0:00:11]} 46. Bf3 {[%clk 0:00:05]}  Kg5 {[%clk 0:00:10]} 47. Ra5+ {[%clk 0:00:05]}  Kg6 {[%clk 0:00:09]} 48. Rd5 {[%clk 0:00:05]}  Rd4 {[%clk 0:00:09]} 49. Rc5 {[%clk 0:00:05]}  Rf4 {[%clk 0:00:08]} 50. Rc6 {[%clk 0:00:05]}  Kg7 {[%clk 0:00:09]} 51. Rc7+ {[%clk 0:00:05]}  Kg6 {[%clk 0:00:09]} 52. Rc6 {[%clk 0:00:06]}  Kg7 {[%clk 0:00:09]} 53. Kh2 {[%clk 0:00:07]}  Kg6 {[%clk 0:00:10]} 54. Kg1 {[%clk 0:00:07]}  h3 {[%clk 0:00:09]} 55. Kh2 {[%clk 0:00:04]}  hxg2 {[%clk 0:00:09]} 56. Kxg2 {[%clk 0:00:05]}  Kg7 {[%clk 0:00:09]} 57. Kg3 {[%clk 0:00:05]}  Be5 {[%clk 0:00:10]} 58. Kg2 {[%clk 0:00:05]}  Bf6 {[%clk 0:00:10]} 59. Rc7+ {[%clk 0:00:05]}  Kg6 {[%clk 0:00:10]} 60. Ra7 {[%clk 0:00:05]}  Be5 {[%clk 0:00:10]} 61. Ra6+ {[%clk 0:00:04]}  Rf6 {[%clk 0:00:10]} 62. Ra5 {[%clk 0:00:04]}  Bc3 {[%clk 0:00:09]} 63. Be4+ {[%clk 0:00:04]}  Kf7 {[%clk 0:00:09]} 64. Kg3 {[%clk 0:00:04]}  Bxa5 {[%clk 0:00:09]} 65. Kg4 {[%clk 0:00:02]}  Bc7 {[%clk 0:00:10]} 66. Bf5 {[%clk 0:00:02]}  Kg7 {[%clk 0:00:10]} 67. Kg5 {[%clk 0:00:02]}  Be5 {[%clk 0:00:10]} 68. Kg4 {[%clk 0:00:03]}  Bf4 {[%clk 0:00:10]} 69. Kxf4 {[%clk 0:00:03]}  Kh6 {[%clk 0:00:11]} 70. Ke5 {[%clk 0:00:03]}  Kg5 {[%clk 0:00:11]} 71. Be4 {[%clk 0:00:03]}  Rf2 {[%clk 0:00:12]} 72. Kd4 {[%clk 0:00:04]}  Kf4 {[%clk 0:00:12]} 73. Bh7 {[%clk 0:00:04]}  Rd2+ {[%clk 0:00:13]} 74. Kc3 {[%clk 0:00:04]}  Rd8 {[%clk 0:00:14]} 75. Bg6 {[%clk 0:00:05]}  Ke3 {[%clk 0:00:14]} 76. Kb2 {[%clk 0:00:05]}  Kd2 {[%clk 0:00:13]} 77. Bf7 {[%clk 0:00:04]}  Rd6 {[%clk 0:00:14]} 78. Ka2 {[%clk 0:00:04]}  Kc3 {[%clk 0:00:14]} 79. Ka1 {[%clk 0:00:04]}  Rd2 {[%clk 0:00:14]} 80. Be6 {[%clk 0:00:04]}  Re2 {[%clk 0:00:14]} 81. Bf7 {[%clk 0:00:04]}  Rf2 {[%clk 0:00:15]} 82. Bg8 {[%clk 0:00:04]}  Kc2 {[%clk 0:00:15]} 83. Bh7+ {[%clk 0:00:03]}  Kb3 {[%clk 0:00:16]} 84. Bg8+ {[%clk 0:00:04]}  Ka3 {[%clk 0:00:16]} 85. Bh7 {[%clk 0:00:04]}  Re2 {[%clk 0:00:14]} 86. Bg6 {[%clk 0:00:04]}  Kb3 {[%clk 0:00:15]} 87. Bf7+ {[%clk 0:00:04]}  Kc3 {[%clk 0:00:15]} 88. Bg6 {[%clk 0:00:04]}  Re1+ {[%clk 0:00:15]} 89. Ka2 {[%clk 0:00:04]}  Re6 {[%clk 0:00:16]} 90. Bf7 {[%clk 0:00:04]}  Rb6 {[%clk 0:00:17]} 91. Ka1 {[%clk 0:00:04]}  Rb2 {[%clk 0:00:17]} 92. Ba2 {[%clk 0:00:04]}  Rd2 {[%clk 0:00:17]} 93. Be6 {[%clk 0:00:04]}  Kc2 {[%clk 0:00:17]} 94. Bf5+ {[%clk 0:00:04]}  Kc3 {[%clk 0:00:17]} 95. Be6 {[%clk 0:00:04]} 1/2-1/2


[Site "https://www.chess.com"]

[Event "Titled Tuesday Blitz April 18 Early 2023"]
[White "Skatchkov, Valery"]
[Black "Movahed, Sina"]
[WhiteFideId "24195812"]
[BlackFideId "42520835"]
[WhiteElo "2262"]
[BlackElo "2225"]
[Result "0-1"]
[Round "02"]
[TimeControl "180+2"]
[Date "2023.04.18"]
[WhiteClock "0:00:14"]
[BlackClock "0:00:09"]

1. d4 {[%clk 0:03:00]}  Nf6 {[%clk 0:02:59]} 2. c4 {[%clk 0:03:01]}  g6 {[%clk 0:02:58]} 3. Nc3 {[%clk 0:03:01]}  Bg7 {[%clk 0:02:58]} 4. e4 {[%clk 0:03:01]}  d6 {[%clk 0:02:59]} 5. h3 {[%clk 0:03:02]}  O-O {[%clk 0:02:59]} 6. Bg5 {[%clk 0:03:02]}  c5 {[%clk 0:02:57]} 7. d5 {[%clk 0:03:03]}  h6 {[%clk 0:02:56]} 8. Be3 {[%clk 0:03:02]}  e6 {[%clk 0:02:56]} 9. Nf3 {[%clk 0:03:02]}  exd5 {[%clk 0:02:55]} 10. exd5 {[%clk 0:03:02]}  Re8 {[%clk 0:02:54]} 11. Bd3 {[%clk 0:03:03]}  Rxe3+ {[%clk 0:02:39]} 12. fxe3 {[%clk 0:03:04]}  Qe7 {[%clk 0:02:39]} 13. O-O {[%clk 0:03:02]}  Nbd7 {[%clk 0:02:39]} 14. Qd2 {[%clk 0:03:01]}  Ne5 {[%clk 0:02:22]} 15. Nxe5 {[%clk 0:03:00]}  Qxe5 {[%clk 0:02:23]} 16. Rf3 {[%clk 0:03:01]}  Nd7 {[%clk 0:01:49]} 17. Raf1 {[%clk 0:02:49]}  f5 {[%clk 0:01:49]} 18. e4 {[%clk 0:02:48]}  f4 {[%clk 0:01:49]} 19. Rxf4 {[%clk 0:02:11]}  Qd4+ {[%clk 0:01:48]} 20. Kh1 {[%clk 0:02:11]}  Ne5 {[%clk 0:01:46]} 21. Rd1 {[%clk 0:02:08]}  Bd7 {[%clk 0:01:30]} 22. Ne2 {[%clk 0:02:05]}  Qxd3 {[%clk 0:01:26]} 23. Qxd3 {[%clk 0:02:06]}  Nxd3 {[%clk 0:01:27]} 24. Rxd3 {[%clk 0:02:06]}  Bxb2 {[%clk 0:01:27]} 25. Rb3 {[%clk 0:02:06]}  Be5 {[%clk 0:01:26]} 26. Rxb7 {[%clk 0:02:03]}  Bc8 {[%clk 0:01:02]} 27. Re7 {[%clk 0:01:45]}  Ba6 {[%clk 0:00:59]} 28. Rg4 {[%clk 0:01:32]}  g5 {[%clk 0:00:54]} 29. Ng3 {[%clk 0:01:29]}  Rb8 {[%clk 0:00:52]} 30. h4 {[%clk 0:01:15]}  Bxc4 {[%clk 0:00:45]} 31. Rxe5 {[%clk 0:01:09]}  dxe5 {[%clk 0:00:44]} 32. Nf5 {[%clk 0:01:08]}  Bxa2 {[%clk 0:00:40]} 33. hxg5 {[%clk 0:01:08]}  hxg5 {[%clk 0:00:37]} 34. Rxg5+ {[%clk 0:01:08]}  Kf7 {[%clk 0:00:37]} 35. Rg7+ {[%clk 0:01:05]}  Kf6 {[%clk 0:00:37]} 36. Rxa7 {[%clk 0:00:33]}  Bxd5 {[%clk 0:00:36]} 37. Ra6+ {[%clk 0:00:33]}  Kg5 {[%clk 0:00:35]} 38. Nd6 {[%clk 0:00:33]}  Ba8 {[%clk 0:00:27]} 39. Ra5 {[%clk 0:00:32]}  Kf4 {[%clk 0:00:25]} 40. Rxc5 {[%clk 0:00:31]}  Rb4 {[%clk 0:00:20]} 41. Nc4 {[%clk 0:00:20]}  Kg3 {[%clk 0:00:16]} 42. Nd2 {[%clk 0:00:17]}  Rb2 {[%clk 0:00:16]} 43. Rc3+ {[%clk 0:00:17]}  Kf4 {[%clk 0:00:16]} 44. Rf3+ {[%clk 0:00:17]}  Kg5 {[%clk 0:00:13]} 45. Nc4 {[%clk 0:00:17]}  Rb1+ {[%clk 0:00:12]} 46. Kh2 {[%clk 0:00:18]}  Bxe4 {[%clk 0:00:12]} 47. Re3 {[%clk 0:00:19]}  Bf5 {[%clk 0:00:07]} 48. Nxe5 {[%clk 0:00:18]}  Kf4 {[%clk 0:00:07]} 49. Re2 {[%clk 0:00:16]}  Be4 {[%clk 0:00:08]} 50. Nc4 {[%clk 0:00:13]}  Bd3 {[%clk 0:00:07]} 51. Rf2+ {[%clk 0:00:12]}  Kg5 {[%clk 0:00:08]} 52. Nd2 {[%clk 0:00:12]}  Rd1 {[%clk 0:00:08]} 53. Nf3+ {[%clk 0:00:13]}  Kh5 {[%clk 0:00:08]} 54. Ne5 {[%clk 0:00:13]}  Be4 {[%clk 0:00:08]} 55. Rf4 {[%clk 0:00:13]}  Rd4 {[%clk 0:00:08]} 56. Nf3 {[%clk 0:00:13]}  Ra4 {[%clk 0:00:05]} 57. Nd2 {[%clk 0:00:13]}  Bc2 {[%clk 0:00:05]} 58. Rf2 {[%clk 0:00:11]}  Kg6 {[%clk 0:00:05]} 59. Nf3 {[%clk 0:00:12]}  Bf5 {[%clk 0:00:05]} 60. Nh4+ {[%clk 0:00:11]}  Rxh4+ {[%clk 0:00:06]} 61. Kg3 {[%clk 0:00:12]}  Rg4+ {[%clk 0:00:06]} 62. Kh2 {[%clk 0:00:13]}  Kg5 {[%clk 0:00:07]} 63. Rb2 {[%clk 0:00:13]}  Re4 {[%clk 0:00:07]} 64. Rb5 {[%clk 0:00:13]}  Kf4 {[%clk 0:00:07]} 65. Rb3 {[%clk 0:00:14]}  Bg4 {[%clk 0:00:07]} 66. Ra3 {[%clk 0:00:13]}  Kf5 {[%clk 0:00:07]} 67. Rb3 {[%clk 0:00:14]}  Kf4 {[%clk 0:00:08]} 68. Ra3 {[%clk 0:00:13]}  Rc4 {[%clk 0:00:08]} 69. Rb3 {[%clk 0:00:12]}  Bf5 {[%clk 0:00:09]} 70. Rg3 {[%clk 0:00:11]}  Be4 {[%clk 0:00:07]} 71. Rg8 {[%clk 0:00:11]}  Rc2 {[%clk 0:00:08]} 72. Rf8+ {[%clk 0:00:12]}  Ke3 {[%clk 0:00:08]} 73. Rg8 {[%clk 0:00:12]}  Rc5 {[%clk 0:00:06]} 74. Rg7 {[%clk 0:00:10]}  Rh5+ {[%clk 0:00:06]} 75. Kg3 {[%clk 0:00:10]}  Rh1 {[%clk 0:00:06]} 76. Rg8 {[%clk 0:00:10]}  Rh6 {[%clk 0:00:06]} 77. Rg7 {[%clk 0:00:10]}  Bd5 {[%clk 0:00:07]} 78. Rg5 {[%clk 0:00:10]}  Be4 {[%clk 0:00:07]} 79. Rg7 {[%clk 0:00:11]}  Rd6 {[%clk 0:00:07]} 80. Rg8 {[%clk 0:00:11]}  Rd2 {[%clk 0:00:07]} 81. Kh2 {[%clk 0:00:11]}  Rd5 {[%clk 0:00:08]} 82. Rg7 {[%clk 0:00:11]}  Kf2 {[%clk 0:00:08]} 83. Rf7+ {[%clk 0:00:11]}  Ke2 {[%clk 0:00:07]} 84. Rg7 {[%clk 0:00:10]}  Ke3 {[%clk 0:00:08]} 85. Rg8 {[%clk 0:00:10]}  Bf5 {[%clk 0:00:07]} 86. Re8+ {[%clk 0:00:10]}  Kf2 {[%clk 0:00:07]} 87. Rf8 {[%clk 0:00:11]}  Ke3 {[%clk 0:00:05]} 88. Kg3 {[%clk 0:00:11]}  Be4 {[%clk 0:00:06]} 89. Rg8 {[%clk 0:00:11]}  Rh5 {[%clk 0:00:06]} 90. Rg7 {[%clk 0:00:11]}  Ra5 {[%clk 0:00:07]} 91. Rg8 {[%clk 0:00:12]}  Ra1 {[%clk 0:00:08]} 92. Kh2 {[%clk 0:00:12]}  Rd1 {[%clk 0:00:08]} 93. Rg3+ {[%clk 0:00:12]}  Ke2 {[%clk 0:00:08]} 94. Rg8 {[%clk 0:00:13]}  Ke3 {[%clk 0:00:09]} 95. Rg3+ {[%clk 0:00:13]}  Kd4 {[%clk 0:00:09]} 96. Rg8 {[%clk 0:00:13]}  Rd2 {[%clk 0:00:10]} 97. Rd8+ {[%clk 0:00:13]}  Bd5 {[%clk 0:00:10]} 98. Rg8 {[%clk 0:00:14]}  Bxg8 {[%clk 0:00:09]} 0-1


[Site "https://www.chess.com"]

[Event "Titled Tuesday Blitz April 18 Early 2023"]
[White "Bharath Subramaniyam H"]
[Black "benny_aizenberg"]
[WhiteFideId "46634827"]
[WhiteElo "2395"]
[BlackElo "2557"]
[Result "1-0"]
[Round "02"]
[TimeControl "180+2"]
[Date "2023.04.18"]
[WhiteClock "0:00:50"]
[BlackClock "0:00:02"]

1. e4 {[%clk 0:02:58]}  d6 {[%clk 0:02:59]} 2. d4 {[%clk 0:02:58]}  g6 {[%clk 0:02:59]} 3. Nc3 {[%clk 0:02:58]}  Bg7 {[%clk 0:02:59]} 4. f4 {[%clk 0:02:59]}  Nf6 {[%clk 0:02:59]} 5. Nf3 {[%clk 0:02:59]}  O-O {[%clk 0:02:59]} 6. Bd3 {[%clk 0:02:59]}  Nc6 {[%clk 0:02:55]} 7. O-O {[%clk 0:02:56]}  Bg4 {[%clk 0:02:41]} 8. Be3 {[%clk 0:02:47]}  e5 {[%clk 0:02:38]} 9. fxe5 {[%clk 0:02:35]}  dxe5 {[%clk 0:02:36]} 10. d5 {[%clk 0:02:35]}  Nd4 {[%clk 0:02:36]} 11. Ne2 {[%clk 0:02:22]}  Bxf3 {[%clk 0:02:27]} 12. gxf3 {[%clk 0:02:23]}  Nxe2+ {[%clk 0:02:27]} 13. Qxe2 {[%clk 0:02:21]}  Nh5 {[%clk 0:02:24]} 14. c4 {[%clk 0:02:13]}  Re8 {[%clk 0:02:13]} 15. Kh1 {[%clk 0:02:09]}  Bf8 {[%clk 0:02:07]} 16. c5 {[%clk 0:02:06]}  b6 {[%clk 0:01:55]} 17. b4 {[%clk 0:01:54]}  a5 {[%clk 0:01:43]} 18. Bb5 {[%clk 0:01:51]}  Qh4 {[%clk 0:00:54]} 19. Bf2 {[%clk 0:01:43]}  Qh3 {[%clk 0:00:54]} 20. Rg1 {[%clk 0:01:35]}  Rec8 {[%clk 0:00:31]} 21. Bc6 {[%clk 0:01:34]}  Rab8 {[%clk 0:00:24]} 22. cxb6 {[%clk 0:01:31]}  cxb6 {[%clk 0:00:19]} 23. b5 {[%clk 0:01:32]}  Bd6 {[%clk 0:00:12]} 24. Be3 {[%clk 0:01:28]}  f5 {[%clk 0:00:10]} 25. Qg2 {[%clk 0:01:25]}  Qxg2+ {[%clk 0:00:10]} 26. Rxg2 {[%clk 0:01:25]}  fxe4 {[%clk 0:00:08]} 27. fxe4 {[%clk 0:01:26]}  Rc7 {[%clk 0:00:08]} 28. Rf2 {[%clk 0:01:21]}  Kg7 {[%clk 0:00:08]} 29. Raf1 {[%clk 0:01:12]}  Nf4 {[%clk 0:00:08]} 30. Rxf4 {[%clk 0:01:08]}  exf4 {[%clk 0:00:09]} 31. Bd4+ {[%clk 0:01:08]}  Kh6 {[%clk 0:00:04]} 32. e5 {[%clk 0:01:09]}  Bf8 {[%clk 0:00:03]} 33. d6 {[%clk 0:01:02]}  Rcc8 {[%clk 0:00:03]} 34. Rxf4 {[%clk 0:00:58]}  Kg5 {[%clk 0:00:03]} 35. Be3 {[%clk 0:00:54]}  Bg7 {[%clk 0:00:02]} 36. Rf7+ {[%clk 0:00:53]}  Kg4 {[%clk 0:00:02]} 37. Rxg7 {[%clk 0:00:51]}  Rf8 {[%clk 0:00:02]} 38. Kg2 {[%clk 0:00:50]}  Rf5 {[%clk 0:00:01]} 39. Bd7 {[%clk 0:00:49]}  Kh5 {[%clk 0:00:01]} 40. Bxf5 {[%clk 0:00:50]}  gxf5 {[%clk 0:00:02]} 41. d7 {[%clk 0:00:50]} 1-0


[Site "https://www.chess.com"]